bitfinex-derivatives/quotes_BTCF0:USTF0_20240814
["timestamp","ask_amount","ask_price","bid_price","bid_amount"]
[1723671266219,0.084789,58961.0,58960.0,0.08460036]
[1723671266418,0.312089,58961.0,58959.0,0.084792]
[1723671266618,0.56668121,58961.0,58959.0,0.084792]
[1723671267024,0.56668121,58961.0,58959.0,0.16941407]
[1723671267328,0.56668121,58961.0,58959.0,0.084792]
[1723671267925,0.74258121,58961.0,58959.0,0.084792]
[1723671268123,0.084791,58960.0,58959.0,0.084792]
[1723671268328,0.194791,58960.0,58959.0,0.084792]
[1723671268628,0.44956974,58960.0,58959.0,0.084792]
[1723671269529,0.45056974,58960.0,58959.0,0.084792]
[1723671269920,0.45156974,58960.0,58959.0,0.084792]
[1723671271236,0.45156974,58960.0,58959.0,0.445592]
[1723671272420,0.45156974,58960.0,58959.0,0.084792]
[1723671275328,0.45156974,58960.0,58959.0,0.244792]
[1723671276734,0.45156974,58960.0,58959.0,0.084792]
[1723671277524,0.72757874,58960.0,58959.0,0.06758261]
[1723671277730,0.084792,58959.0,58958.0,0.06758261]
[1723671277941,0.084794,58958.0,58957.0,0.06758261]
[1723671278135,0.084795,58957.0,58956.0,0.06773166]
[1723671278332,0.194795,58957.0,58956.0,0.00014905]
[1723671278641,0.44888904,58957.0,58956.0,0.06773628]
[1723671279438,0.44888904,58957.0,58956.0,0.00014905]
[1723671279940,0.44988904,58957.0,58956.0,0.00014905]
[1723671280838,0.45088904,58957.0,58956.0,0.00014905]
[1723671282740,0.45088904,58957.0,58956.0,0.06773628]
[1723671283545,0.45088904,58957.0,58956.0,0.00014905]
[1723671283843,0.45088904,58957.0,58956.0,0.06774077]
[1723671284841,0.45088904,58957.0,58956.0,0.00014905]
[1723671286640,0.45088904,58957.0,58956.0,0.06777435]
[1723671287043,0.45088904,58957.0,58956.0,0.06777438]
[1723671287439,0.45088904,58957.0,58956.0,0.00014905]
[1723671287837,0.56818904,58957.0,58956.0,0.00014905]
[1723671289341,0.56718904,58957.0,58956.0,0.00014905]
[1723671289540,0.56818904,58957.0,58956.0,0.00014905]
[1723671290641,0.56718904,58957.0,58956.0,0.00014905]
[1723671290948,0.56818904,58957.0,58956.0,0.00014905]
[1723671291436,1.39223404,58957.0,58951.0,0.08462207]
[1723671291642,0.445602,58952.0,58951.0,0.0676873]
[1723671291844,0.555602,58952.0,58951.0,0.0676873]
[1723671292051,0.084804,58951.0,58950.0,0.0676873]
[1723671292345,0.55600098,58951.0,58950.0,0.0676873]
[1723671292539,0.084808,58948.0,58947.0,0.16943107]
[1723671292740,0.312108,58948.0,58947.0,0.084809]
[1723671292951,0.56600498,58948.0,58947.0,0.084809]
[1723671293244,0.56600498,58948.0,58947.0,0.08462207]
[1723671293450,0.48119698,58948.0,58944.0,0.084813]
[1723671293756,0.36489698,58948.0,58946.0,0.08463445]
[1723671293937,0.084811,58946.0,58945.0,0.08463445]
[1723671294141,0.184811,58946.0,58945.0,0.21385256]
[1723671294342,0.43925526,58946.0,58945.0,0.12921811]
[1723671295151,0.55655526,58946.0,58945.0,0.12921811]
[1723671295542,0.55655526,58946.0,58945.0,0.21385866]
[1723671296248,0.1139,58953.0,58945.0,0.21385866]
[1723671296249,0.1173,58976.0,58970.0,0.8176]
[1723671296442,0.00880871,58980.0,58975.0,0.7216]
[1723671296650,0.1137,58988.0,58981.0,0.08476]
[1723671296850,0.2237,58988.0,58987.0,0.3608]
[1723671297049,0.308451,58988.0,58987.0,0.3608]
[1723671297252,0.5086,58987.0,58985.0,0.06762143]
[1723671297451,0.5086,58987.0,58968.0,0.08453004]
[1723671297452,0.084759,58982.0,58968.0,0.08453004]
[1723671297657,0.084759,58982.0,58966.0,0.06760469]
[1723671297658,0.445578,58969.0,58966.0,0.06760469]
[1723671297849,0.445578,58969.0,58962.0,0.06760469]
[1723671297850,0.084786,58963.0,58962.0,0.06760469]
[1723671298053,0.2273,58963.0,58961.0,0.06760469]
[1723671298355,0.36484669,58963.0,58958.0,0.3608]
[1723671298569,0.36484669,58963.0,58961.0,0.06762054]
[1723671298864,0.76484669,58963.0,58958.0,0.06762054]
[1723671299064,0.3608,58959.0,58956.0,0.06762054]
[1723671299256,0.1173,58957.0,58956.0,0.06762054]
[1723671299460,0.2373,58957.0,58956.0,0.06762054]
[1723671299772,0.4902644,58957.0,58956.0,0.24352736]
[1723671299967,0.4902644,58957.0,58956.0,0.17590682]
[1723671299968,0.6070644,58957.0,58956.0,0.17590682]
[1723671300566,1.1159044,58957.0,58956.0,0.17590682]
[1723671300767,0.6070644,58957.0,58956.0,0.24353765]
[1723671301068,0.6190644,58957.0,58956.0,0.084797]
[1723671301261,0.4890644,58957.0,58956.0,0.085797]
[1723671301662,0.6090644,58957.0,58956.0,0.085797]
[1723671302570,0.6070644,58957.0,58956.0,0.085797]
[1723671302772,0.6080644,58957.0,58956.0,0.085797]
[1723671303164,0.4880644,58957.0,58956.0,0.085797]
[1723671303374,0.2539644,58957.0,58956.0,0.085797]
[1723671303572,0.2539644,58957.0,58956.0,0.084797]
[1723671304266,0.2539644,58957.0,58956.0,0.169594]
[1723671304467,0.2539644,58957.0,58956.0,0.29878218]
[1723671304769,0.2529644,58957.0,58956.0,0.38631681]
[1723671305069,0.1173,58961.0,58960.0,0.084791]
[1723671305277,0.1173,58961.0,58960.0,0.445591]
[1723671305465,0.00044893,58968.0,58960.0,0.9869]
[1723671305671,0.00044893,58968.0,58967.0,0.647662]
[1723671305862,0.00044893,58968.0,58967.0,0.530362]
[1723671306068,0.2533993,58968.0,58967.0,0.65952226]
[1723671306669,0.11834967,58968.0,58967.0,1.73828226]
[1723671307475,0.11834967,58968.0,58967.0,1.82306326]
[1723671307771,0.11844914,58968.0,58967.0,1.82304606]
[1723671307966,0.00109947,58968.0,58967.0,1.97274383]
[1723671308170,0.00025444,58973.0,58972.0,0.254322]
[1723671308364,4.4e-07,58973.0,58972.0,1.29213906]
[1723671308568,4.4e-07,58973.0,58972.0,2.34853649]
[1723671308769,4.4e-07,58973.0,58972.0,2.48923805]
[1723671309370,4.4e-07,58973.0,58972.0,2.34853649]
[1723671309577,4.4e-07,58973.0,58972.0,2.34853324]
[1723671310182,4.4e-07,58973.0,58972.0,2.05843324]
[1723671311080,4.4e-07,58973.0,58972.0,2.1595386]
[1723671311280,4.4e-07,58973.0,58972.0,2.05843324]
[1723671312182,4.4e-07,58973.0,58972.0,2.15951044]
[1723671312374,4.4e-07,58973.0,58972.0,2.05840508]
[1723671313369,0.084745,58992.0,58973.0,0.2931]
[1723671313682,0.25372249,58991.0,58990.0,0.3608]
[1723671315388,0.25372249,58991.0,58990.0,0.445547]
[1723671315575,0.66682249,58991.0,58985.0,0.00025444]
[1723671315974,0.68082249,58991.0,58985.0,0.00025444]
[1723671316175,0.69282249,58991.0,58985.0,0.00025444]
[1723671316974,0.68082249,58991.0,58985.0,0.00025444]
[1723671317176,0.084753,58986.0,58985.0,0.00025444]
[1723671317378,0.204753,58986.0,58985.0,0.00025444]
[1723671317684,0.46067298,58986.0,58985.0,0.00025444]
[1723671318889,0.46867298,58986.0,58985.0,0.00025444]
[1723671319276,0.26991998,58986.0,58985.0,0.08500944]
[1723671321686,0.32651998,58986.0,58985.0,0.08500944]
[1723671325790,0.32651998,58986.0,58985.0,0.24500944]
[1723671325995,0.32651998,58986.0,58985.0,0.29548769]
[1723671326585,0.32651998,58986.0,58985.0,0.24500944]
[1723671327391,0.32651998,58986.0,58985.0,0.08500944]
[1723671327589,0.32651998,58986.0,58985.0,0.13553914]
[1723671327796,0.32651998,58986.0,58985.0,0.08500944]
[1723671331891,0.32651998,58986.0,58985.0,0.15231377]
[1723671332304,0.32651998,58986.0,58985.0,0.08500944]
[1723671334191,0.32651998,58986.0,58985.0,0.2141277]
[1723671334799,0.32651998,58986.0,58985.0,0.3641277]
[1723671335303,0.32651998,58986.0,58985.0,0.36412742]
[1723671335486,0.32651998,58986.0,58985.0,0.21412742]
[1723671336400,0.32651998,58986.0,58985.0,0.31565165]
[1723671336786,0.32651998,58986.0,58985.0,0.47565165]
[1723671336995,0.26991998,58986.0,58985.0,0.56040665]
[1723671337204,0.26991998,58986.0,58985.0,0.54363742]
[1723671337393,0.26991998,58986.0,58985.0,0.68400582]
[1723671339003,0.26991998,58986.0,58985.0,0.79420582]
[1723671340002,0.26991998,58986.0,58985.0,0.79386551]
[1723671340504,0.26991998,58986.0,58985.0,1.70246551]
[1723671340695,0.014,58986.0,58985.0,1.70246551]
[1723671342903,0.014,58986.0,58985.0,1.71167485]
[1723671343493,0.00025444,58996.0,58995.0,0.08474]
[1723671343690,0.00025444,58996.0,58995.0,1.21264441]
[1723671343691,0.11025444,58996.0,58995.0,1.21264441]
[1723671343898,0.36498734,58996.0,58995.0,1.21264441]
[1723671344795,0.37898734,58996.0,58995.0,1.21264441]
[1723671344996,0.39298734,58996.0,58995.0,1.21264441]
[1723671345993,0.39298734,58996.0,58995.0,1.72116441]
[1723671346195,0.1172,59012.0,59005.0,0.084726]
[1723671346509,0.2272,59012.0,59011.0,0.084718]
[1723671346803,0.4822363,59012.0,59011.0,0.084718]
[1723671347400,0.3650363,59012.0,59011.0,0.722718]
[1723671347596,0.3760363,59012.0,59011.0,0.722718]
[1723671347996,0.3760363,59012.0,59011.0,0.605518]
[1723671348192,0.3760363,59012.0,59011.0,0.67306532]
[1723671348392,0.3790363,59012.0,59011.0,0.67506532]
[1723671348592,0.2690363,59012.0,59011.0,1.66814332]
[1723671348805,0.2690363,59012.0,59011.0,0.607518]
[1723671350903,0.014,59012.0,59011.0,2.02254562]
[1723671351106,0.014,59012.0,59011.0,1.62254562]
[1723671351311,0.26731217,59012.0,59011.0,1.62254562]
[1723671351905,0.26731217,59012.0,59011.0,0.73456762]
[1723671351906,0.25331217,59012.0,59011.0,0.73456762]
[1723671352208,0.117,59012.0,59011.0,0.59022938]
[1723671352407,0.117,59012.0,59011.0,0.607517]
[1723671352607,0.37253413,59012.0,59011.0,0.607517]
[1723671353004,0.37253413,59012.0,59011.0,0.447517]
[1723671353205,0.37253413,59012.0,59011.0,0.3628]
[1723671353206,0.45725013,59012.0,59011.0,0.3628]
[1723671353400,0.169446,59007.0,59006.0,0.36105422]
[1723671353607,0.084719,59010.0,59006.0,0.52105422]
[1723671353805,0.204719,59010.0,59009.0,0.08472]
[1723671354002,0.44659517,59010.0,59009.0,0.05057329]
[1723671354204,0.084723,59007.0,59006.0,0.36105422]
[1723671354617,0.34019467,59007.0,59006.0,0.36105422]
[1723671356109,0.25547167,59007.0,59006.0,0.60577922]
[1723671356497,0.193923,59008.0,59006.0,0.60577922]
[1723671356909,0.25534335,59007.0,59006.0,0.60577922]
[1723671360613,0.25734335,59007.0,59006.0,0.60577922]
[1723671361016,0.25734335,59007.0,59006.0,0.6732086]
[1723671361217,0.25734335,59007.0,59006.0,1.1816086]
[1723671361513,0.25734335,59007.0,59006.0,0.6732086]
[1723671362218,0.25734335,59007.0,59006.0,0.60577922]
[1723671362614,0.25734335,59007.0,59006.0,1.51417922]
[1723671362808,0.2047726,59007.0,59006.0,1.59890422]
[1723671363008,0.2047726,59007.0,59006.0,1.68319722]
[1723671363217,0.2047726,59007.0,59006.0,1.72797181]
[1723671363614,0.2047726,59007.0,59006.0,1.73097181]
[1723671363615,0.2027726,59007.0,59006.0,1.73097181]
[1723671363809,0.0563,59022.0,59006.0,1.73097181]
[1723671363810,0.3608,59028.0,59016.0,0.16942]
[1723671364007,0.0513,59027.0,59016.0,0.69022]
[1723671364212,0.22967873,59017.0,59016.0,1.72758844]
[1723671364818,0.22967873,59017.0,59016.0,2.18959642]
[1723671365013,0.22967873,59017.0,59016.0,2.22275442]
[1723671365014,0.17884448,59017.0,59016.0,2.22275442]
[1723671365210,0.17884448,59017.0,59016.0,2.27425364]
[1723671365405,0.17884448,59017.0,59016.0,2.08838844]
[1723671365620,0.17884448,59017.0,59016.0,2.18956168]
[1723671366519,0.17984448,59017.0,59016.0,2.19956168]
[1723671366905,0.17984448,59017.0,59016.0,2.20875146]
[1723671367109,0.17984448,59017.0,59016.0,2.09757822]
[1723671367310,0.17984448,59017.0,59016.0,2.12057822]
[1723671368716,0.17984448,59017.0,59016.0,1.62667844]
[1723671368916,0.17984448,59017.0,59016.0,1.07357359]
[1723671369222,0.29984448,59017.0,59016.0,0.98931]
[1723671369607,0.29984448,59017.0,59016.0,0.98031]
[1723671369809,0.29884448,59017.0,59016.0,0.99431]
[1723671370117,0.29984448,59017.0,59016.0,0.99431]
[1723671371412,0.29884448,59017.0,59016.0,0.98031]
[1723671371616,0.29984448,59017.0,59016.0,0.99331]
[1723671371916,0.29984448,59017.0,59016.0,0.99131]
[1723671373915,0.29884448,59017.0,59016.0,0.96631]
[1723671374219,0.29984448,59017.0,59016.0,0.99131]
[1723671379627,0.29984448,59017.0,59016.0,1.07557359]
[1723671380020,0.29984448,59017.0,59016.0,1.20462342]
[1723671381121,0.29984448,59017.0,59016.0,1.12035983]
[1723671381422,0.29984448,59017.0,59016.0,1.20472345]
[1723671382117,0.29984448,59017.0,59016.0,1.12035983]
[1723671382322,0.29984448,59017.0,59016.0,1.20472408]
[1723671383224,0.29984448,59017.0,59016.0,1.20472679]
[1723671383626,0.29984448,59017.0,59016.0,0.84392679]
[1723671384027,0.29984448,59017.0,59016.0,0.63051]
[1723671384330,0.29984448,59017.0,59016.0,0.75955867]
[1723671387930,0.29984448,59017.0,59016.0,0.87665867]
[1723671388732,0.29984448,59017.0,59016.0,0.87665869]
[1723671389236,0.29984448,59017.0,59016.0,0.97783193]
[1723671390038,0.29984448,59017.0,59016.0,0.61703193]
[1723671390337,0.29984448,59017.0,59016.0,0.97783193]
[1723671391123,0.29984448,59017.0,59016.0,0.87665869]
[1723671392041,0.29984448,59017.0,59016.0,0.75955869]
[1723671392433,0.29984448,59017.0,59016.0,0.87665869]
[1723671393334,0.29984448,59017.0,59016.0,0.87665979]
[1723671397149,0.29984448,59017.0,59016.0,1.01114731]
[1723671398237,0.29984448,59017.0,59016.0,1.01119352]
[1723671399851,0.29984448,59017.0,59016.0,1.01120433]
[1723671401452,0.29884448,59017.0,59016.0,0.99820433]
[1723671401747,0.29984448,59017.0,59016.0,0.99820433]
[1723671401952,0.29984448,59017.0,59016.0,1.00920433]
[1723671402746,0.29984448,59017.0,59016.0,1.00922636]
[1723671403143,0.29984448,59017.0,59016.0,0.89212636]
[1723671403341,0.29984448,59017.0,59016.0,1.15681657]
[1723671403548,0.29984448,59017.0,59016.0,1.00922636]
[1723671404349,0.29984448,59017.0,59016.0,1.15681744]
[1723671405052,0.29984448,59017.0,59016.0,1.00922636]
[1723671405254,0.29984448,59017.0,59016.0,1.15681744]
[1723671407448,0.29984448,59017.0,59016.0,1.29143837]
[1723671407657,0.29984448,59017.0,59016.0,1.15687197]
[1723671409353,0.29984448,59017.0,59016.0,1.15687198]
[1723671410754,0.29984448,59017.0,59016.0,0.88022004]
[1723671410953,0.29984448,59017.0,59016.0,1.15686045]
[1723671412155,0.29984448,59017.0,59016.0,1.15683842]
[1723671412360,0.29984448,59017.0,59016.0,1.42039391]
[1723671412662,0.29984448,59017.0,59016.0,1.4203939]
[1723671413360,0.29984448,59017.0,59016.0,1.42039391]
[1723671413957,0.29984448,59017.0,59016.0,1.42039392]
[1723671414158,0.29984448,59017.0,59016.0,1.33568392]
[1723671414359,0.46926248,59017.0,59016.0,0.45964041]
[1723671414662,0.58636248,59017.0,59016.0,0.31204933]
[1723671414956,1.64668995,59017.0,59014.0,0.08472718]
[1723671415153,1.64668995,59017.0,59010.0,0.08472718]
[1723671415154,0.084717,59011.0,59010.0,0.08472718]
[1723671415462,0.16944,59009.0,59008.0,0.08472718]
[1723671415660,0.40654,59009.0,59008.0,0.23472718]
[1723671415866,0.59559391,59009.0,59008.0,0.23472718]
[1723671416161,0.084723,59007.0,59006.0,0.0849814]
[1723671416361,0.204723,59007.0,59006.0,0.0849814]
[1723671416552,1.3682476,59007.0,59006.0,0.0849814]
[1723671417158,1.3682476,59007.0,59006.0,0.00025422]
[1723671417959,1.3682476,59007.0,59006.0,0.00125422]
[1723671418164,1.4277476,59007.0,59006.0,0.00125422]
[1723671419463,1.0277476,59007.0,59006.0,0.00125422]
[1723671421160,1.03668932,59007.0,59006.0,0.00125422]
[1723671424060,1.12141232,59007.0,59006.0,0.05191838]
[1723671424367,1.12141232,59007.0,59006.0,0.00125422]
[1723671426361,1.12141232,59007.0,59006.0,0.00025422]
[1723671426754,1.12441232,59007.0,59006.0,0.00025422]
[1723671427155,1.12541232,59007.0,59006.0,0.00025422]
[1723671428661,0.61701232,59007.0,59006.0,0.00025422]
[1723671433067,0.084724,59006.0,58999.0,0.05059783]
[1723671433270,0.169472,58998.0,58997.0,0.05059783]
[1723671433457,0.084739,58996.0,58992.0,0.05059415]
[1723671433660,0.201842,58994.0,58990.0,0.05059415]
[1723671433862,0.084746,58991.0,58990.0,0.20059415]
[1723671434162,0.21408303,58991.0,58990.0,0.15]
[1723671434365,0.21408303,58991.0,58990.0,0.20059415]
[1723671434666,0.21408303,58991.0,58990.0,0.15]
[1723671434868,0.084747,58990.0,58989.0,0.41139415]
[1723671435074,0.321847,58990.0,58989.0,0.2105838]
[1723671435272,0.57455459,58990.0,58989.0,0.2105838]
[1723671436168,0.65930159,58990.0,58989.0,0.0505838]
[1723671436364,0.084749,58989.0,58988.0,0.0505838]
[1723671436671,0.55203003,58989.0,58988.0,0.0505838]
[1723671436971,1.14533903,58989.0,58988.0,0.0505838]
[1723671437170,1.14533903,58989.0,58985.0,0.05083356]
[1723671437171,0.084753,58986.0,58985.0,0.05083356]
[1723671437377,0.311853,58986.0,58985.0,0.00025422]
[1723671437671,0.564992,58986.0,58985.0,0.00025422]
[1723671438173,0.649745,58986.0,58985.0,0.00025422]
[1723671440278,0.649745,58986.0,58985.0,0.00325422]
[1723671440869,0.649745,58986.0,58985.0,0.00125422]
[1723671441169,0.649745,58986.0,58985.0,0.00325422]
[1723671442372,0.649745,58986.0,58985.0,0.00225422]
[1723671442871,0.649745,58986.0,58985.0,0.00125422]
[1723671444173,0.649745,58986.0,58985.0,0.05184609]
[1723671445582,0.649745,58986.0,58985.0,0.05084609]
[1723671445583,0.735498,58986.0,58985.0,0.05084609]
[1723671445978,0.734498,58986.0,58985.0,0.05084609]
[1723671446288,0.735498,58986.0,58985.0,0.05084609]
[1723671446881,0.735498,58986.0,58985.0,0.00025422]
[1723671447183,0.744498,58986.0,58985.0,0.05184609]
[1723671447389,0.744498,58986.0,58985.0,0.00125422]
[1723671447890,0.744498,58986.0,58985.0,0.05184609]
[1723671448690,0.738498,58986.0,58985.0,0.05084609]
[1723671448881,0.745498,58986.0,58985.0,0.05184609]
[1723671449282,0.734498,58986.0,58985.0,0.05084609]
[1723671449490,0.745498,58986.0,58985.0,0.05284609]
[1723671449785,0.745498,58986.0,58975.0,0.20141979]
[1723671449786,0.5086,58985.0,58973.0,0.3608]
[1723671449987,0.1171,58974.0,58970.0,0.06754049]
[1723671450192,0.084778,58969.0,58968.0,0.06754049]
[1723671450389,0.084778,58969.0,58967.0,0.15232049]
[1723671450390,0.084779,58968.0,58967.0,0.15232049]
[1723671450691,0.25429161,58969.0,58968.0,0.084779]
[1723671450877,0.1171,58976.0,58969.0,0.084777]
[1723671451081,0.2271,58976.0,58975.0,0.05064078]
[1723671451281,0.311867,58976.0,58975.0,0.20064078]
[1723671451792,0.56462484,58976.0,58975.0,0.20064078]
[1723671452590,0.56462484,58976.0,58975.0,0.20064353]
[1723671452782,1.55807184,58976.0,58975.0,0.002]
[1723671452982,1.55807184,58976.0,58975.0,0.003]
[1723671453178,1.47330484,58976.0,58975.0,0.003]
[1723671453378,1.55807184,58976.0,58975.0,0.003]
[1723671453586,0.084772,58973.0,58972.0,0.41144353]
[1723671453788,0.311872,58973.0,58972.0,0.41144353]
[1723671454087,0.55499988,58973.0,58972.0,0.41144353]
[1723671454293,0.55499988,58973.0,58972.0,0.3608]
[1723671454488,0.55499988,58973.0,58971.0,0.05064353]
[1723671454489,0.084773,58972.0,58971.0,0.05064353]
[1723671454692,0.194773,58972.0,58971.0,0.3608]
[1723671454893,0.44874493,58972.0,58971.0,0.41144353]
[1723671455194,0.44874493,58972.0,58971.0,0.3608]
[1723671455389,0.44874493,58972.0,58971.0,0.41143366]
[1723671455891,0.44874493,58972.0,58971.0,0.41343366]
[1723671456108,0.44874493,58972.0,58971.0,0.41643366]
[1723671456289,0.44874493,58972.0,58971.0,0.41443366]
[1723671456596,0.44874493,58972.0,58971.0,0.41743366]
[1723671456793,0.44874493,58972.0,58971.0,0.41843366]
[1723671458096,0.45797474,58972.0,58971.0,0.41843366]
[1723671458398,0.45797474,58972.0,58971.0,0.41543366]
[1723671458590,0.45797474,58972.0,58971.0,0.3668]
[1723671458898,0.45797474,58972.0,58971.0,0.41343488]
[1723671459095,0.45797474,58972.0,58971.0,0.3658]
[1723671459599,0.45797474,58972.0,58971.0,0.3668]
[1723671460196,0.45797474,58972.0,58971.0,0.3658]
[1723671461488,0.45797474,58972.0,58971.0,0.3628]
[1723671461799,0.45797474,58972.0,58971.0,0.3618]
[1723671463400,0.45797474,58972.0,58971.0,0.42932104]
[1723671465102,0.45797474,58972.0,58971.0,0.42832104]
[1723671465497,0.45897474,58972.0,58971.0,0.42832104]
[1723671467801,0.57607474,58972.0,58971.0,0.42832104]
[1723671468900,0.57507474,58972.0,58971.0,0.42932104]
[1723671469101,0.45797474,58972.0,58971.0,0.43132104]
[1723671469407,0.57507474,58972.0,58971.0,0.43132104]
[1723671470691,0.57507474,58972.0,58971.0,0.42932104]
[1723671471497,0.57507474,58972.0,58971.0,0.3618]
[1723671471704,0.57507474,58972.0,58971.0,0.42944139]
[1723671473596,0.57507474,58972.0,58971.0,0.3618]
[1723671478505,0.57507474,58972.0,58971.0,0.44611979]
[1723671479204,0.57507474,58972.0,58971.0,0.3618]
[1723671479411,0.62537683,58972.0,58971.0,0.48870213]
[1723671481107,0.62537683,58972.0,58971.0,0.48770213]
[1723671481303,0.62637683,58972.0,58971.0,0.48770213]
[1723671481502,0.57607474,58972.0,58971.0,0.48770213]
[1723671483508,0.57607474,58972.0,58971.0,0.48765218]
[1723671484423,0.57707474,58972.0,58971.0,0.48765218]
[1723671484807,0.57907474,58972.0,58971.0,0.48765218]
[1723671488219,0.57907474,58972.0,58971.0,0.48760814]
[1723671491714,0.62964956,58972.0,58971.0,0.48760814]
[1723671492818,0.62964956,58972.0,58971.0,0.48761662]
[1723671495422,0.62864956,58972.0,58971.0,0.48761662]
[1723671495622,0.63064956,58972.0,58971.0,0.48761662]
[1723671496624,0.62764956,58972.0,58971.0,0.48761662]
[1723671496818,0.63164956,58972.0,58971.0,0.48761662]
[1723671498717,0.71642256,58972.0,58971.0,0.48761662]
[1723671498922,0.85710174,58972.0,58967.0,0.08481228]
[1723671499122,0.08478,58967.0,58966.0,0.08481228]
[1723671499325,0.084782,58966.0,58965.0,0.00018291]
[1723671499531,0.194782,58966.0,58965.0,0.00018291]
[1723671499732,0.19622003,58966.0,58965.0,0.00018291]
[1723671500218,0.24674064,58966.0,58965.0,0.00018291]
[1723671500823,0.24674064,58966.0,58965.0,0.00318291]
[1723671501730,0.24674064,58966.0,58965.0,0.00718291]
[1723671502031,0.19622003,58966.0,58965.0,0.00718291]
[1723671504024,0.20558945,58966.0,58965.0,0.00718291]
[1723671504621,0.20558945,58966.0,58962.0,0.0850665]
[1723671504622,0.084786,58963.0,58962.0,0.00025422]
[1723671504826,0.406672,58963.0,58962.0,0.00025422]
[1723671505020,0.70996798,58963.0,58962.0,0.00025422]
[1723671505636,0.71015089,58963.0,58962.0,0.00025422]
[1723671506141,0.65967799,58963.0,58962.0,0.00025422]
[1723671506639,0.71015089,58963.0,58962.0,0.00025422]
[1723671506842,0.66067799,58963.0,58962.0,0.00725422]
[1723671507239,0.66167799,58963.0,58962.0,0.01025422]
[1723671512950,0.66167799,58963.0,58962.0,0.06101027]
[1723671515249,0.66167799,58963.0,58962.0,0.01025422]
[1723671517458,0.66067799,58963.0,58962.0,0.00725422]
[1723671517643,0.66167799,58963.0,58962.0,0.00925422]
[1723671517848,0.66167799,58963.0,58962.0,0.00825422]
[1723671523162,0.66167799,58963.0,58962.0,0.07599289]
[1723671526250,0.71215089,58963.0,58962.0,0.00825422]
[1723671527147,0.66167799,58963.0,58962.0,0.00825422]
[1723671531055,0.72909389,58963.0,58962.0,0.00825422]
[1723671531460,0.66167799,58963.0,58962.0,0.00825422]
[1723671532651,0.66067799,58963.0,58962.0,0.00825422]
[1723671532857,0.66167799,58963.0,58962.0,0.00825422]
[1723671533454,0.66167799,58963.0,58959.0,0.08481228]
[1723671533455,0.08479,58960.0,58959.0,0.08481228]
[1723671533663,0.30189,58960.0,58959.0,0.20958701]
[1723671533868,0.55497288,58960.0,58959.0,0.20958701]
[1723671534058,0.55497288,58960.0,58959.0,0.12477471]
[1723671534460,0.55597288,58960.0,58959.0,0.13177471]
[1723671534862,0.43887288,58960.0,58959.0,0.13177471]
[1723671535163,0.60652972,58960.0,58959.0,0.13177471]
[1723671535558,0.60752972,58960.0,58959.0,0.13277471]
[1723671538568,0.55697288,58960.0,58959.0,0.13277471]
[1723671538764,0.55697288,58960.0,58959.0,0.13280865]
[1723671539873,0.60752972,58960.0,58959.0,0.13280865]
[1723671541372,0.61680294,58960.0,58959.0,0.13280865]
[1723671546669,0.61680294,58960.0,58959.0,0.13288159]
[1723671547872,0.5662461,58960.0,58959.0,0.13288159]
[1723671548073,0.49970294,58960.0,58959.0,0.13288159]
[1723671548277,0.5662461,58960.0,58959.0,0.13288159]
[1723671548876,0.5662461,58960.0,58959.0,0.21767359]
[1723671549271,0.5662461,58960.0,58959.0,1.41425597]
[1723671549272,0.3643561,58960.0,58959.0,1.41425597]
[1723671549668,0.3643561,58960.0,58959.0,1.67806865]
[1723671549868,0.3643561,58960.0,58959.0,1.80785846]
[1723671550481,0.3643561,58960.0,58959.0,1.67806865]
[1723671551396,0.3643561,58960.0,58959.0,1.41425597]
[1723671552476,0.4814561,58960.0,58959.0,1.01425597]
[1723671553475,0.4814561,58960.0,58959.0,1.0142471]
[1723671554774,0.4814561,58960.0,58959.0,1.4142471]
[1723671554972,0.4814561,58960.0,58959.0,1.0142471]
[1723671555777,0.4814561,58960.0,58959.0,1.4142471]
[1723671555977,0.4814561,58960.0,58959.0,1.01303613]
[1723671556276,0.4814561,58960.0,58959.0,1.41303613]
[1723671556476,0.4814561,58960.0,58959.0,1.01303613]
[1723671556773,0.00025422,58965.0,58964.0,0.084785]
[1723671556977,0.25242584,58975.0,58974.0,0.08477]
[1723671557183,0.331869,58975.0,58974.0,0.22477]
[1723671557391,0.57179652,58975.0,58974.0,0.22477]
[1723671558378,0.32469652,58975.0,58974.0,0.34187]
[1723671558580,0.33469652,58975.0,58974.0,0.34287]
[1723671559484,0.34369652,58975.0,58974.0,0.4105489]
[1723671560079,0.34369652,58975.0,58974.0,0.2934489]
[1723671562085,0.47369652,58975.0,58974.0,0.2934489]
[1723671562393,0.47369652,58975.0,58974.0,0.22577]
[1723671566590,0.47369652,58975.0,58974.0,0.29338561]
[1723671566789,0.47369652,58975.0,58974.0,0.22577]
[1723671566987,0.47369652,58975.0,58974.0,0.2933863]
[1723671567693,0.47369652,58975.0,58974.0,0.22577]
[1723671568097,0.47369652,58975.0,58974.0,0.29338314]
[1723671569699,0.47369652,58975.0,58974.0,0.34287]
[1723671569891,0.47369652,58975.0,58974.0,0.70367]
[1723671578803,0.47369652,58975.0,58974.0,0.9102657]
[1723671579005,0.47369652,58975.0,58974.0,0.78835115]
[1723671579396,0.47369652,58975.0,58974.0,0.91025844]
[1723671582702,0.47369652,58975.0,58974.0,0.82557729]
[1723671586204,0.47369652,58975.0,58974.0,0.92719467]
[1723671586410,0.47369652,58975.0,58974.0,0.82557729]
[1723671586411,0.38892752,58975.0,58974.0,0.82557729]
[1723671590903,0.25892752,58975.0,58974.0,0.82557729]
[1723671591104,0.25892752,58975.0,58974.0,0.95303966]
[1723671591412,0.00025422,58980.0,58979.0,0.084763]
[1723671591609,0.11964523,58980.0,58979.0,0.80910556]
[1723671591806,0.11025422,58980.0,58979.0,0.80910556]
[1723671592407,0.04972431,58980.0,58979.0,1.61611029]
[1723671592613,0.084754,58986.0,58985.0,0.084754]
[1723671592908,0.204754,58986.0,58985.0,0.48376129]
[1723671593407,0.204754,58986.0,58985.0,0.56841915]
[1723671593614,0.204754,58986.0,58985.0,0.56694903]
[1723671593805,0.218754,58986.0,58985.0,0.56794903]
[1723671594315,0.232754,58986.0,58985.0,0.44851186]
[1723671595115,0.24228124,58986.0,58985.0,0.44851186]
[1723671595304,0.24228124,58986.0,58985.0,0.363854]
[1723671596215,0.24228124,58986.0,58985.0,0.56891149]
[1723671596412,0.24228124,58986.0,58985.0,0.44851186]
[1723671597315,0.24228124,58986.0,58985.0,0.48423926]
[1723671598113,0.24228124,58986.0,58985.0,0.48351014]
[1723671598913,0.24228124,58986.0,58985.0,0.36641014]
[1723671599118,0.24228124,58986.0,58985.0,0.48351014]
[1723671599806,0.24228124,58986.0,58985.0,0.48369573]
[1723671600219,0.148,58986.0,58985.0,1.07687585]
[1723671600408,0.00025422,58991.0,58990.0,0.254241]
[1723671600609,0.00025422,58991.0,58990.0,1.17770855]
[1723671600812,0.0721,59003.0,59002.0,0.08473]